[Event "EICC 2025"]
[Site "Eforie-Nord"]
[Date "2025.03.16"]
[Round "2.17"]
[White "Bjerre, Jonas Buhl"]
[Black "Bodrogi, Bendeguz"]
[Result "1/2-1/2"]
[Annotator "TA"]
[ECO "C67"]
[WhiteElo "2637"]
[BlackElo "2460"]
[PlyCount "90"]
[EventDate "2025.03.14"]
[EventType "swiss"]
[EventCountry "ROU"]
[SourceTitle "playchess.com"]
[Source "ChessBase"]
[SourceQuality "1"]
[TimeControl "40/5400+30:1800+30"]

{[%evp 9,90,10,22,-5,28,-2,5,13,17,16,10,20,24,8,13,31,28,8,6,12,21,16,17,5,11,11,27,0,18,0,0,0,0,0,10,10,31,20,21,21,10,0,0,0,0,0,0,-7,-8,-14,555,0,0,0,24,4,1,1,65,54,57,45,64,75,65,70,78,0,0,0,0,0,0,0,0,0,0,-8,0,-8,-5,-12,0]} 1. e4 {[%emt 0:00:05]} e5 {[%emt 0:00:51]} 2. Nf3 {[%emt 0:00:07]} Nc6 {[%emt 0:00:10]} 3. Bb5 {[%emt 0:00:12]} Nf6 {[%emt 0:00:08]} 4. O-O {[%emt 0:01:08][%cal Bh1f1,Bf1e1,Be1e4][%mdl 32]} Nxe4 {[%emt 0:00:15]} 5. Re1 {[%emt 0:00:41]} Nd6 {[%emt 0:00:22]} 6. Bf1 {[%emt 0:00:46]} Be7 {[%emt 0:02:42] [#]} 7. Nc3 {[%emt 0:00:21]} e4 {[%emt 0:01:59]} 8. Nxe4 {[%emt 0:00:23]} Nxe4 {[%emt 0:00:09]} 9. Rxe4 {[%emt 0:00:03]} O-O {[%emt 0:04:10]} 10. d4 {[%emt 0:01:53]} d5 {[%emt 0:00:09]} 11. Re1 {[%emt 0:00:07]} Bd6 {[%emt 0:11:48]} 12. Bg5 {[%emt 0:01:56]} f6 {[%emt 0:06:58]} 13. Bh4 {[%emt 0:00:39]} Ne7 {[%emt 0:00:24]} 14. c4 {[%emt 0:08:56]} dxc4 {[%emt 0:15:06]} 15. Bxc4+ {[%emt 0:04:50]} Kh8 {[%emt 0:00:09] Counterplay White} 16. Qb3 {[%emt 0:08:22]} Nf5 {[%emt 0:03:29]} 17. Bg3 {[%emt 0:15:34]} a5 {[%emt 0:07:09]} 18. Rad1 {[%emt 0:07:53][%cal Of3e5,Ba1d1,Bd1d3,Bd3f3][%mdl 32]} a4 {[%emt 0:06:12]} 19. Qc2 {[%emt 0:02:49][%cal Of3e5]} Nxg3 {[%emt 0:05:51]} 20. hxg3 {[%emt 0:00:05][%cal Of3e5]} Bg4 {[%emt 0:00:52]} 21. Be6 {[%emt 0:05:14]} f5 {[%emt 0:02:48]} 22. Rd3 {[%emt 0:05:00]} Qf6 {[%emt 0:02:40] Wards off Ne5} 23. d5 {[%emt 0:04:05]} Bxf3 {[%emt 0:06:19]} 24. Rxf3 {[%emt 0:00:08]} g6 {[%emt 0:00:06]} 25. a3 {[%emt 0:04:01]} Ra5 {[%emt 0:00:52]} 26. g4 {[%emt 0:02:03][%cal Rg4f5]} Rc5 {[%emt 0:02:17]} 27. Qxa4 {[%emt 0:02:14]} Qxb2 {[%emt 0:01:06]} 28. g3 {[%emt 0:11:08][%cal Rg4f5,Bg2g3,Bg3f4,Bf4f5][%mdl 32] White is weak on the dark squares} b5 {[%emt 0:03:03]} 29. Qd1 {[%emt 0:00:25][%cal Rg4f5]} Rc2 $2 {[%emt 0:00:18][%mdl 8192] [#]} (29... f4 $11 {and Black stays safe.} 30. gxf4 Rc4) 30. gxf5 $2 {[%emt 0:01:40]} (30. Rb3 $1 $18 {[%cal Rb3b2]} Qg7 31. Qxc2) 30... Bc5 $11 {[%emt 0:02:27]} (30... Rd2 {simplifies} 31. Qa1 Qxa1 32. Rxa1 gxf5 33. Rb1 f4) 31. Rf1 {[%emt 0:01:10]} gxf5 {[%emt 0:00:14]} 32. Kg2 {[%emt 0:06:16]} f4 $132 {[%emt 0:05:13][%mdl 2048] Opposite bishops and equal position Black is not holding back} 33. gxf4 {[%emt 0:03:14]} Rd2 {[%emt 0:01:41]} ({Black should try} 33... Rc3 $11) 34. Qe1 $14 {[%emt 0:00:48]} Re2 {[%emt 0:01:12]} 35. Qb1 {[%emt 0:02:02]} Rf6 {[%emt 0:04:45]} 36. Qxb2 {[%emt 0:00:49]} Rxb2 {[%emt 0:00:07]} 37. f5 $1 {[%emt 0:00:23] Wards off Rg6+} Bd6 {[%emt 0:01:15] Against Rg3} 38. Kh3 {[%emt 0:01:20]} (38. Rh3 $16) 38... b4 $11 {[%emt 0:01:06] The position is equal.} 39. axb4 {[%emt 0:00:35]} Rxb4 {[%emt 0:00:14]} 40. Re3 {[%emt 0:00:31]} Rh6+ {[%emt 0:01:48]} 41. Kg2 {[%emt 0:00:37]} Rh2+ {[%emt 0:09:36]} 42. Kf3 {[%emt 0:00:56]} Kg7 {[%emt 0:00:26]} 43. Bd7 {[%emt 0:04:35]} (43. Rg1+ Kf6 44. Re4 Rb3+ 45. Re3 Rb4) 43... Kf7 {[%emt 0:02:46]} 44. Be8+ {[%emt 0:06:11]} Kf8 {[%emt 0:01:04] ...Rh3+ would now be deadly.} 45. Bd7 {[%emt 0:00:43]} Kf7 {[%emt 0:00:06] Weighted Error Value: White=0.20 (precise) /Black=0.23 (precise)   Loses game:     	---       	Black=1      Missed win:     	White=1     	---        Mistake:       	White=1     	Black=1      Inaccurate:     	White=2     	Black=1      OK:         	White=13    	Black=20     Best:        	White=1     	Black=2      Strong:       	White=1     	---} 1/2-1/2

[Event "EICC 2025"]
[Site "Eforie-Nord"]
[Date "2025.03.16"]
[Round "2.17"]
[White "Stefanou, Dimitrios"]
[Black "Pantsulaia, Levan"]
[Result "0-1"]
[Annotator "ChessBase"]
[ECO "D25"]
[WhiteElo "2389"]
[BlackElo "2538"]
[PlyCount "130"]
[EventDate "2025.03.14"]
[EventType "swiss"]
[EventCountry "ROU"]
[SourceTitle "playchess.com"]
[Source "ChessBase"]
[SourceQuality "1"]
[TimeControl "40/5400+30:1800+30"]

1. d4 {[%emt 0:00:04]} d5 {[%emt 0:00:58]} 2. Nf3 {[%emt 0:02:42]} Nf6 {[%emt 0:00:30]} 3. c4 {[%emt 0:01:43]} dxc4 {[%emt 0:00:16]} 4. e3 {[%emt 0:01:19]} Be6 {[%emt 0:01:06]} 5. Na3 {[%emt 0:08:09]} Bd5 {[%emt 0:01:32]} 6. Nxc4 {[%emt 0:02:35]} e6 {[%emt 0:00:17]} 7. Be2 {[%emt 0:02:14]} c5 {[%emt 0:03:40]} 8. O-O {[%emt 0:06:39]} Nbd7 {[%emt 0:09:17]} 9. dxc5 {[%emt 0:06:24]} Bxc5 {[%emt 0:01:36]} 10. a3 {[%emt 0:00:19]} Rc8 {[%emt 0:09:18]} 11. b4 {[%emt 1:03:52]} Be7 12. Nce5 {[%emt 0:00:00]} Nxe5 {[%emt 0:02:11]} 13. Nxe5 {[%emt 0:00:00]} O-O {[%emt 0:00:15]} 14. Bb2 {[%emt 0:00:00]} a5 {[%emt 0:01:05]} 15. Qd4 {[%emt 0:00:00]} axb4 {[%emt 0:06:34]} 16. axb4 {[%emt 0:00:00]} Qd6 {[%emt 0:00:17]} 17. b5 {[%emt 0:00:00]} Qb4 {[%emt 0:04:15]} 18. Rfc1 {[%emt 0:00:00]} Rfd8 {[%emt 0:05:08]} 19. Qxb4 {[%emt 0:00:00]} Bxb4 {[%emt 0:00:14]} 20. Rxc8 {[%emt 0:00:00]} Rxc8 {[%emt 0:00:41]} 21. Rc1 {[%emt 0:00:00]} Rxc1+ {[%emt 0:00:43]} 22. Bxc1 {[%emt 0:00:00]} Ne4 {[%emt 0:02:01]} 23. f3 {[%emt 0:00:00]} Nc3 {[%emt 0:00:18]} 24. Bf1 {[%emt 0:00:00]} f6 {[%emt 0:09:27]} 25. Nd7 {[%emt 0:00:00]} e5 {[%emt 0:05:03]} 26. Nb6 {[%emt 0:00:00]} Be6 {[%emt 0:00:36]} 27. Nc4 {[%emt 0:00:00]} Kf8 {[%emt 0:06:50]} 28. Bd2 {[%emt 0:00:58]} Na2 {[%emt 0:01:07]} 29. Kf2 {[%emt 0:02:14]} Bxd2 {[%emt 0:00:33]} 30. Nxd2 {[%emt 0:00:07]} Ke7 {[%emt 0:00:49]} 31. f4 {[%emt 0:02:02]} Nc3 {[%emt 0:00:48]} 32. Bd3 {[%emt 0:01:24]} h6 {[%emt 0:01:22]} 33. fxe5 {[%emt 0:01:27]} fxe5 {[%emt 0:00:06]} 34. Bc4 {[%emt 0:01:21]} Bd7 {[%emt 0:04:07]} 35. b6 {[%emt 0:00:09]} Kd6 {[%emt 0:02:59]} 36. Bb3 {[%emt 0:01:27]} Kc5 {[%emt 0:02:04]} 37. Bc2 {[%emt 0:00:24]} Bc6 {[%emt 0:04:38]} 38. h4 {[%emt 0:01:04]} Bd5 {[%emt 0:06:07]} 39. e4 {[%emt 0:00:40]} Be6 {[%emt 0:02:48]} 40. Ke3 {[%emt 0:00:19]} Bg4 {[%emt 0:05:51]} 41. Bb3 {[%emt 0:04:55]} Nb5 {[%emt 0:03:05]} 42. Bd5 {[%emt 0:03:20]} Nd6 {[%emt 0:00:15]} 43. Nb3+ {[%emt 0:00:17]} Kxb6 {[%emt 0:01:36]} 44. Nc1 {[%emt 0:00:11]} Bd7 {[%emt 0:00:26]} 45. Nd3 {[%emt 0:00:24]} Bc6 {[%emt 0:00:09]} 46. g4 {[%emt 0:07:25]} Bxd5 {[%emt 0:03:06]} 47. exd5 {[%emt 0:00:09]} e4 {[%emt 0:00:26]} 48. Nf4 {[%emt 0:00:49]} Kc5 {[%emt 0:00:05]} 49. Ne6+ {[%emt 0:01:20]} Kxd5 {[%emt 0:00:07]} 50. Nxg7 {[%emt 0:00:06]} b5 {[%emt 0:00:25]} 51. Nh5 {[%emt 0:02:29]} b4 {[%emt 0:04:34]} 52. g5 {[%emt 0:12:34]} hxg5 {[%emt 0:01:40]} 53. hxg5 {[%emt 0:00:06]} Ke5 {[%emt 0:10:50]} 54. Kd2 {[%emt 0:03:10]} Nf5 {[%emt 0:03:07]} 55. g6 {[%emt 0:00:26]} b3 {[%emt 0:03:04]} 56. Ng3 {[%emt 0:00:33]} e3+ {[%emt 0:00:43]} 57. Kd3 {[%emt 0:00:11]} Kf4 {[%emt 0:04:51]} 58. Ne2+ {[%emt 0:00:50]} Kf3 {[%emt 0:00:12]} 59. Nc3 {[%emt 0:00:32]} Ng7 {[%emt 0:00:22]} 60. Ne2 {[%emt 0:00:17]} Ne6 {[%emt 0:00:30]} 61. Ng1+ {[%emt 0:00:48]} Kf2 {[%emt 0:01:36]} 62. Ne2 {[%emt 0:00:25]} b2 {[%emt 0:00:13]} 63. Nc3 {[%emt 0:00:09]} e2 {[%emt 0:00:27]} 64. g7 {[%emt 0:00:04]} Nxg7 {[%emt 0:00:12]} 65. Ne4+ {[%emt 0:00:12]} Kg2 {[%emt 0:00:09]} 0-1

[Event "EICC 2025"]
[Site "Eforie-Nord"]
[Date "2025.03.16"]
[Round "2.18"]
[White "Alonso Rosell, Alvar"]
[Black "Tudor, Henry Edward"]
[Result "1-0"]
[Annotator "ChessBase"]
[ECO "D02"]
[WhiteElo "2535"]
[BlackElo "2384"]
[PlyCount "73"]
[EventDate "2025.03.14"]
[EventType "swiss"]
[EventCountry "ROU"]
[SourceTitle "playchess.com"]
[Source "ChessBase"]
[SourceQuality "1"]
[TimeControl "40/5400+30:1800+30"]

1. Nf3 {[%emt 0:00:03]} Nf6 {[%emt 0:00:25]} 2. g3 {[%emt 0:00:06]} d5 {[%emt 0:02:13]} 3. Bg2 {[%emt 0:00:07]} e6 {[%emt 0:00:05]} 4. O-O {[%emt 0:00:09]} Be7 {[%emt 0:00:03]} 5. d4 {[%emt 0:00:09]} O-O {[%emt 0:00:06]} 6. b3 {[%emt 0:00:06]} c5 {[%emt 0:04:32]} 7. dxc5 {[%emt 0:01:37]} Bxc5 {[%emt 0:01:30]} 8. Bb2 {[%emt 0:00:06]} Nc6 {[%emt 0:06:03]} 9. c4 {[%emt 0:00:07]} d4 {[%emt 0:08:39]} 10. b4 {[%emt 0:01:05]} Bxb4 {[%emt 0:13:33]} 11. Nxd4 {[%emt 0:00:34]} Bd7 {[%emt 0:00:04]} 12. Nxc6 {[%emt 0:21:03]} Bxc6 {[%emt 0:00:18]} 13. Bxc6 {[%emt 0:00:03]} bxc6 {[%emt 0:00:07]} 14. Qc2 {[%emt 0:00:32]} Qe7 {[%emt 0:12:32]} 15. Nd2 {[%emt 0:16:36]} e5 {[%emt 0:10:55]} 16. Rfd1 {[%emt 0:21:15]} Nd7 {[%emt 0:21:19]} 17. Ne4 {[%emt 0:13:14]} f5 {[%emt 0:03:48]} 18. a3 {[%emt 0:06:26]} fxe4 {[%emt 0:05:17]} 19. axb4 {[%emt 0:00:06]} Nf6 {[%emt 0:00:52]} 20. Qc3 {[%emt 0:01:21]} Qf7 {[%emt 0:03:57]} 21. Qxe5 {[%emt 0:06:54]} Ng4 {[%emt 0:00:38]} 22. Qc5 {[%emt 0:00:01]} a5 {[%emt 0:03:56]} 23. bxa5 {[%emt 0:05:09]} Rae8 {[%emt 0:00:12]} 24. Bd4 {[%emt 0:00:54]} Qg6 {[%emt 0:00:48]} 25. h3 {[%emt 0:03:42]} Nxf2 {[%emt 0:00:32]} 26. Bxf2 {[%emt 0:00:12]} e3 {[%emt 0:00:02]} 27. Be1 {[%emt 0:00:17]} Rf5 {[%emt 0:01:03]} 28. Qd6 {[%emt 0:00:42]} Rf6 {[%emt 0:00:29]} 29. Qd3 {[%emt 0:01:17]} Qh6 {[%emt 0:00:31]} 30. Kg2 {[%emt 0:00:42]} Ref8 {[%emt 0:00:03]} 31. a6 {[%emt 0:00:42]} Qh5 {[%emt 0:00:56]} 32. a7 {[%emt 0:00:29]} Rh6 {[%emt 0:00:31]} 33. h4 {[%emt 0:00:21]} Rd6 {[%emt 0:00:29]} 34. Qxe3 {[%emt 0:00:23]} Rxd1 {[%emt 0:00:02]} 35. Qe6+ {[%emt 0:00:18]} Kh8 {[%emt 0:00:07]} 36. Rxd1 {[%emt 0:00:25]} Re8 {[%emt 0:00:23]} 37. g4 {[%emt 0:00:16]} 1-0

[Event "EICC 2025"]
[Site "Eforie-Nord"]
[Date "2025.03.16"]
[Round "2.18"]
[White "Tarhan, Adar"]
[Black "Hakobyan, Aram"]
[Result "1/2-1/2"]
[Annotator "TA"]
[ECO "E15"]
[WhiteElo "2460"]
[BlackElo "2635"]
[PlyCount "99"]
[EventDate "2025.03.14"]
[EventType "swiss"]
[EventCountry "ROU"]
[SourceTitle "playchess.com"]
[Source "ChessBase"]
[SourceQuality "1"]
[TimeControl "40/5400+30:1800+30"]

{[%evp 19,99,34,57,30,17,18,29,20,36,0,0,-27,-35,-69,-17,-23,0,0,0,0,0,0,0,0,6,5,21,24,56,20,35,0,0,-8,-5,-33,0,0,0,-41,-26,-34,-35,-46,-33,-83,-93,-78,-78,-79,-60,-70,-54,-60,0,-62,-62,-64,-65,-67,-68,-122,-122,-122,-115,-123,0,0,0,0,0,0,0,0,0,0,0,0,0,0,0,0]} 1. d4 {[%emt 0:03:57]} e6 {[%emt 0:00:45]} 2. c4 {[%emt 0:00:14]} Nf6 {[%emt 0:00:08]} 3. Nf3 {[%emt 0:00:08]} b6 {[%emt 0:00:33]} 4. g3 {[%emt 0:01:56]} Ba6 {[%emt 0:01:36]} 5. b3 {[%emt 0:08:17]} Bb7 {[%emt 0:00:53]} 6. Bg2 {[%emt 0:00:08]} Bb4+ {[%emt 0:00:09]} 7. Bd2 {[%emt 0:00:32]} c5 {[%emt 0:00:08]} 8. Bxb4 {[%emt 0:04:45]} cxb4 {[%emt 0:00:13]} 9. O-O {[%emt 0:00:11]} O-O {[%emt 0:00:06]} 10. a3 {[%emt 0:01:00]} Na6 {[%emt 0:02:45]} 11. axb4 {[%emt 0:12:52] E15: Queen's Indian: 4 g3 sidelines, 4 g3 Ba6 and 4 g3 Bb7 early deviations.} Nxb4 {[%emt 0:00:09]} 12. Nc3 {[%emt 0:00:02]} a5 {[%emt 0:00:33]} 13. e3 $146 {[%emt 0:08:27] White has an edge.} (13. Qb1 d5 14. Ne5 Rc8 15. e3 Ba6 16. Na2 Nxa2 17. Qxa2 Ne4 18. Rfc1 Qd6 19. Qa3 Qxa3 20. Rxa3 {0-1 Mammadov,M (2058)-Gokerkan,C (2452) Konyaalti op 2019 (1)}) 13... Rc8 {[%emt 0:05:04]} 14. Ne5 {[%emt 0:05:53]} Ba6 {[%emt 0:10:11]} 15. d5 {[%emt 0:02:46]} exd5 {[%emt 0:04:15]} 16. Nxd5 {[%emt 0:00:53]} Nbxd5 {[%emt 0:10:12]} (16... Nfxd5 $15 17. Bxd5 Qc7) 17. Bxd5 $11 {[%emt 0:00:08]} Qe7 {[%emt 0:00:17]} 18. Nf3 {[%emt 0:01:47][%cal Oe3e4,Be5f3,Bf3e1,Be1g2,Bg2f4][%mdl 32]} Nxd5 {[%emt 0:01:55]} 19. Qxd5 {[%emt 0:00:06]} Rc5 {[%emt 0:00:14]} 20. Qd4 {[%emt 0:01:00]} Bb7 {[%emt 0:01:01]} 21. Ne1 {[%emt 0:00:13]} Rc6 {[%emt 0:22:29]} 22. Rd1 {[%emt 0:02:24]} Rh6 {[%emt 0:00:28]} 23. Ng2 {[%emt 0:04:07]} Rd8 {[%emt 0:05:46]} (23... Qb4 24. Nf4 Qxb3 25. Qxd7 Bf3) 24. f3 {[%emt 0:04:31]} (24. Rd2 Bc6 25. Nf4 Qb4 26. Ra1) 24... f5 {[%emt 0:11:15]} 25. Qf4 {[%emt 0:07:42]} Rf6 {[%emt 0:02:06]} 26. Qc7 {[%emt 0:00:43]} Bc6 {[%emt 0:01:04]} 27. Rd3 {[%emt 0:00:24][%cal Og2f4]} (27. Qxb6 Bxf3 28. Qxa5 Bxd1 29. Rxd1 Rb8 $17) 27... Re8 {[%emt 0:02:20]} (27... g5 $5) 28. Nf4 {[%emt 0:07:27]} (28. Qxb6 Bxf3 (28... Be4 29. Qxa5 Ra8 30. Qd2 $15) 29. Qa7 Bc6 $15 (29... Bxg2 30. Rxd7 Qxe3+ 31. Kxg2 $14)) 28... Qc5 {[%emt 0:01:05]} 29. Kf2 {[%emt 0:03:32]} a4 {[%emt 0:03:46]} 30. bxa4 {[%emt 0:00:59] Active counter play!} Qxc4 {[%emt 0:00:12] Strongly threatening ...g5.} 31. Rfd1 $1 {[%emt 0:05:18]} Qxa4 {[%emt 0:00:50]} (31... Qa2+ {looks sharper.} 32. R1d2 Qa1 33. Rd1 Qxa4 34. Nd5 Rfe6) 32. Qxb6 {[%emt 0:00:31] [#]} (32. h4 $15) 32... Bxf3 $1 $17 {[%emt 0:09:44]} 33. Qxf6 {[%emt 0:00:03]} gxf6 {[%emt 0:01:36]} 34. Kxf3 {[%emt 0:01:49]} Qc2 {[%emt 0:00:11]} 35. R1d2 {[%emt 0:01:26]} Qc1 {[%emt 0:00:21]} 36. Rd1 {[%emt 0:00:49]} Qc2 {[%emt 0:00:02]} (36... Rxe3+ $2 37. Kf2 Qc5 38. Rxe3 $18) 37. R1d2 $1 {[%emt 0:00:06]} Qc6+ {[%emt 0:00:15]} 38. Kf2 {[%emt 0:01:10]} Qh1 {[%emt 0:00:29]} 39. Rxd7 {[%emt 0:03:54]} Qxh2+ {[%emt 0:00:06]} 40. Kf1 {[%emt 0:02:48] [#]} (40. Ng2 $15) 40... Qh1+ $1 {[%emt 0:00:12]} (40... Qxg3 41. Rg2 Rxe3 42. Rxg3+ Rxg3 43. Kf2 $16) 41. Kf2 {[%emt 0:30:05]} Qe4 {[%emt 0:31:54]} 42. Nd5 {[%emt 0:03:53]} Qe6 {[%emt 0:00:00]} ({Better is} 42... Qe5 $17 43. Rd1 Qb2+ 44. Kf3 Kf8 45. Rxh7 Qc2) 43. Rb2 $11 {[%emt 0:00:00][%cal Ob2b6] Black must now prevent Rb6!. The position is equal.} f4 {[%emt 0:00:00]} (43... Qxd7 $2 44. Nxf6+ Kf7 45. Nxd7 $18) (43... Kf8 $5 44. Rbb7 $8 f4 45. gxf4 Ra8 $11) 44. gxf4 {[%emt 0:00:00]} Kf8 {[%emt 0:00:00]} (44... Qxd7 $2 45. Nxf6+ Kg7 46. Nxd7 $18) 45. Rbb7 {[%emt 0:00:00][%cal Oe3e4]} Ra8 {[%emt 0:00:00]} 46. Rxh7 {[%emt 0:00:00]} Ra2+ {[%emt 0:00:00]} ({But not} 46... Qxd5 47. Rh8+ $16) 47. Ke1 $1 {[%emt 0:00:00]} Ra1+ {[%emt 0:00:00]} 48. Kf2 {[%emt 0:00:00]} Ra2+ {[%emt 0:00:00]} ({Not} 48... Qxd5 49. Rb8+) 49. Ke1 $1 {[%emt 0:00:00] Dancing on a razor blade.} Ra1+ {[%emt 0:00:00]} 50. Kf2 {[%emt 0:00:00] Weighted Error Value: White=0.10 (very precise) /Black=0.15 (very precise)   Mistake:       	White=2     	Black=2      Inaccurate:     	White=7     	Black=2      OK:         	White=15    	Black=16     Best:        	White=4     	Black=3      Strong:       	White=4     	---} 1/2-1/2

[Event "EICC 2025"]
[Site "Eforie-Nord"]
[Date "2025.03.16"]
[Round "2.19"]
[White "Suleymanli, Aydin"]
[Black "Trost, Edvin"]
[Result "0-1"]
[Annotator "TA"]
[ECO "D94"]
[WhiteElo "2633"]
[BlackElo "2457"]
[PlyCount "62"]
[EventDate "2025.03.14"]
[EventType "swiss"]
[EventCountry "ROU"]
[SourceTitle "playchess.com"]
[Source "ChessBase"]
[SourceQuality "1"]
[TimeControl "40/5400+30:1800+30"]

{[%evp 10,62,35,27,40,7,15,10,23,18,20,0,0,21,8,26,28,48,32,8,20,-16,0,-25,-30,-102,-102,-104,-102,-378,-279,-378,-370,-593,-587,-584,-589,-584,-583,-579,-579,-714,-607,-613,-513,-491,-502,-580,-580,-558,-518,-520,-496,-606,-577]} 1. d4 {[%emt 0:03:56]} d5 {[%emt 0:00:09]} 2. c4 {[%emt 0:00:38]} c6 {[%emt 0:00:06]} 3. Nf3 {[%emt 0:01:08]} Nf6 {[%emt 0:00:07]} 4. e3 {[%emt 0:00:06]} g6 {[%emt 0:01:03]} 5. Nc3 {[%emt 0:00:12]} Bg7 {[%emt 0:00:05]} 6. Bd3 {[%emt 0:01:39]} c5 {[%emt 0:00:36] D94: Grünfeld: 4 Nf3 Bg7 5 e3.} 7. O-O {[%emt 0:09:49]} cxd4 {[%emt 0:00:21]} 8. exd4 {[%emt 0:01:22]} Nc6 $146 {[%emt 0:00:41] The position is equal.} (8... O-O 9. Bg5 Be6 10. c5 Nc6 11. Qa4 h6 12. Be3 Bg4 13. Ne5 Bd7 14. Nxc6 Bxc6 {0-1 Konicek,P-Kopal,J (2135) CZE-chT2V 9899 1998}) 9. cxd5 {[%emt 0:03:43]} Nxd5 {[%emt 0:00:06]} 10. Be4 {[%emt 0:00:11]} Be6 {[%emt 0:20:09]} 11. Ng5 {[%emt 0:06:28]} Nxc3 {[%emt 0:01:03]} 12. bxc3 {[%emt 0:01:04] [#] Black must now prevent d5. A sharp opening} Bc4 {[%emt 0:00:15]} 13. Re1 {[%emt 0:03:27]} O-O {[%emt 0:03:50]} 14. Qa4 {[%emt 0:11:15]} Bd5 {[%emt 0:02:28]} 15. Ba3 {[%emt 0:02:14]} (15. Rb1 $5) 15... Re8 {[%emt 0:05:52]} 16. Rab1 {[%emt 0:10:58]} e5 {[%emt 0:18:24][%cal Re5d4]} 17. Rxb7 {[%emt 0:29:11]} (17. Qb5 $11 {remains equal.} Bxe4 (17... Bxa2 18. Ra1 $16) 18. Nxe4 exd4 19. cxd4) 17... exd4 $1 $17 {[%emt 0:01:12]} 18. h4 {[%emt 0:03:25][%cal Ob7f7]} d3 {[%emt 0:07:48][%csl Od3] Black has a strong passed pawn The board is on fire.} (18... dxc3 $6 19. Rxf7 Bxf7 20. Nxf7 $11) 19. Nf3 $2 {[%emt 0:07:13][%mdl 8192] Now White is beyond hope.} (19. Rxf7 $17 {keeps fighting.} d2 (19... Bxf7 20. Nxf7 d2 21. Rf1 $15) (19... Bxc3 20. Rd1 $11) 20. Rd1 Bxf7 21. Nxf7 Kxf7 (21... Qxh4 $2 22. Qc4 $16) 22. Qxc6 (22. Bxc6 $2 Re1+ 23. Kh2 Be5+ 24. g3 Rc8 $19)) 19... Bxc3 {[%emt 0:01:09]} 20. Re3 {[%emt 0:01:37]} d2 {[%emt 0:01:06]} 21. Bc2 {[%emt 0:00:23] Repels Bb3} (21. Nxd2 Bxd2 22. Bxd5 Qxd5 23. Rxa7 Rxa7 24. Rxe8+ Kg7 25. Bf8+ Kf6 26. Rd8 Rxa4 (26... Nxd8 $2 27. Qxa7 Nc6 28. Qa4 $19) (26... Qxd8 27. Qxc6+ Kf5 28. Qc5+ Ke6 29. Qc6+ Kf5 30. Qc5+ Ke6 31. Qc6+ Kf5 $11) (26... Qe6 $2 27. Qd1 $19) 27. Rxd5) 21... Rxe3 $19 {[%emt 0:00:16] Black is clearly winning.} 22. fxe3 {[%emt 0:00:03]} Ne5 {[%emt 0:02:02]} 23. Re7 {[%emt 0:01:25]} Nxf3+ 24. gxf3 {[%emt 0:00:02]} Bxf3 {[%emt 0:05:59]} 25. Rd7 {[%emt 0:00:47]} Qb8 {[%emt 0:04:08]} 26. Kf2 {[%emt 0:00:31] Prevents Qg3+.} Bh5 {[%emt 0:00:03]} 27. Bd6 {[%emt 0:00:23]} Qe8 {[%emt 0:01:01]} (27... Qb2 28. Qe4 Rf8 (28... d1=N+ $2 {too greedy.} 29. Kg1 $18) (28... d1=Q 29. Qxa8+) 29. Qe7 d1=N+ 30. Kg1 $18) 28. Bf4 {[%emt 0:00:46]} Rd8 {[%emt 0:00:57]} 29. Rd3 {[%emt 0:00:32] [#]} Ba5 $1 {[%emt 0:01:40][%mdl 512] and ...Qxa4 should not be overlooked} 30. Qxe8+ {[%emt 0:00:30]} Rxe8 {[%emt 0:00:01]} 31. e4 {[%emt 0:00:17]} Rxe4 {[%emt 0:00:19] Weighted Error Value: White=0.54/Black=0.25 (precise)   Loses game:     	White=1     	---        Mistake:       	White=2     	---        Inaccurate:     	White=3     	---        OK:         	White=4     	Black=14     Best:        	White=1     	---        Strong:       	---       	Black=1} 0-1

[Event "EICC 2025"]
[Site "Eforie-Nord"]
[Date "2025.03.16"]
[Round "2.19"]
[White "Blohberger, Felix"]
[Black "Maltsevskaya, Aleksandra"]
[Result "1-0"]
[Annotator "ChessBase"]
[ECO "C00"]
[WhiteElo "2534"]
[BlackElo "2376"]
[PlyCount "67"]
[EventDate "2025.03.14"]
[EventType "swiss"]
[EventCountry "ROU"]
[SourceTitle "playchess.com"]
[Source "ChessBase"]
[SourceQuality "1"]
[TimeControl "40/5400+30:1800+30"]

1. e4 {[%emt 0:00:13]} c5 {[%emt 0:00:10]} 2. Nf3 {[%emt 0:00:07]} e6 {[%emt 0:00:11]} 3. g3 {[%emt 0:00:07]} Nc6 {[%emt 0:03:15]} 4. Bg2 {[%emt 0:01:05]} Nf6 {[%emt 0:01:01]} 5. d3 {[%emt 0:00:23]} d5 {[%emt 0:03:11]} 6. Qe2 {[%emt 0:00:30]} Be7 {[%emt 0:02:27]} 7. a4 {[%emt 0:00:17]} b6 {[%emt 0:00:52]} 8. Na3 {[%emt 0:09:47]} Ba6 {[%emt 0:15:57]} 9. Nb5 {[%emt 0:02:17]} O-O {[%emt 0:08:44]} 10. O-O {[%emt 0:01:20]} Qd7 {[%emt 0:15:30]} 11. Bf4 {[%emt 0:17:19]} Rac8 {[%emt 0:16:56]} 12. c3 {[%emt 0:12:40]} c4 {[%emt 0:06:38]} 13. dxc4 {[%emt 0:07:02]} Nxe4 {[%emt 0:00:25]} 14. Rad1 {[%emt 0:07:07]} f5 {[%emt 0:06:33]} 15. cxd5 {[%emt 0:19:56]} exd5 {[%emt 0:00:07]} 16. c4 {[%emt 0:01:49]} Nb4 {[%emt 0:01:02]} 17. Ne5 {[%emt 0:03:12]} Qe6 {[%emt 0:00:15]} 18. Nd4 {[%emt 0:03:03]} Qf6 {[%emt 0:00:07]} 19. Nd7 {[%emt 0:04:59]} Qf7 {[%emt 0:00:09]} 20. Nb5 {[%emt 0:02:50]} Rfd8 {[%emt 0:08:54]} 21. Ne5 {[%emt 0:00:07]} Qe6 {[%emt 0:02:44]} 22. cxd5 {[%emt 0:02:28]} Nxd5 {[%emt 0:00:21]} 23. Bxe4 {[%emt 0:01:09]} fxe4 {[%emt 0:01:18]} 24. Qxe4 {[%emt 0:00:32]} Bb7 {[%emt 0:03:17]} 25. Rfe1 {[%emt 0:00:53]} Bb4 {[%emt 0:01:25]} 26. Bd2 {[%emt 0:01:11]} Bc5 {[%emt 0:00:50]} 27. b4 {[%emt 0:00:58]} Qh3 {[%emt 0:00:58]} 28. bxc5 {[%emt 0:00:28]} Ne3 {[%emt 0:00:38]} 29. Qxb7 {[%emt 0:00:19]} Nxd1 {[%emt 0:00:16]} 30. Rxd1 {[%emt 0:00:29]} Qh5 {[%emt 0:00:42]} 31. Re1 {[%emt 0:00:24]} Rxc5 {[%emt 0:00:31]} 32. Bc3 {[%emt 0:00:24]} Qf5 {[%emt 0:00:33]} 33. Nc6 {[%emt 0:00:36]} Qd7 {[%emt 0:00:31]} 34. Nxd8 {[%emt 0:00:18]} 1-0